Cogmind - Beta 17.1 @@@ ROGUE MODE // 2026.09.20 @ 23:57:57 Player: C0GU55Y Result: Destroyed by P-70 Sage with High-powered Shock Rifle Performance ------------- Evolutions (6) 3000 Regions Visited (10) 2000 Robots Destroyed (95) 475 Value Destroyed (4236) 4236 Prototype IDs (53) 1060 Alien Tech Used (0) 0 Bonus (2592) 2592 TOTAL SCORE: 13363 Bonus ------- High Alert Combat Kills 350 Follower Combat Kills 902 Entered Garrisons 200 Registered with UFD 300 Met Optimus in HQ 500 MAIN.C Attacked Warlord 500 Friendly Fire -160 Cogmind --------- Core Integrity 0/1150 Matter 290/300 Energy 99/100 System Corruption 2% Temperature Cool (0) Movement Core (50) Location -4/Garrison Parts ------- > --- POWER (2) -------- (None) > --- PROPULSION (6) --- (None) > --- UTILITY (7) ------ (None) > --- WEAPON (4) ------- (None) > --- INVENTORY (5) ---- Advanced Heat Sink Matter Compressor (250) Long-range Sensor Array Hardened Medium Armor Plating Peak State ------------ > --- POWER ------------ Light Angular Momentum Engine Antimatter Reactor > --- PROPULSION ------- Armored Medium Treads Armored Medium Treads Armored Medium Treads Compact Wheel Field Propulsion Array > --- UTILITY ---------- High-capacity Storage Unit Seismic Detector Advanced Targeting Computer Experimental Core Analyzer Armor Integrity Analyzer Layered Light Armor Plating A0-MCA's Component Scanner > --- WEAPON ----------- Cooled Plasma Rifle Gauss Rifle Hypervelocity Coil Gun Hypervelocity Coil Gun > --- INVENTORY -------- Antimatter Reactor Myomer Leg Advanced Heat Sink Advanced Heat Sink Matter Compressor Advanced Targeting Computer Core Analyzer Phase Shifter Hardened Medium Armor Plating Layered Light Armor Plating Tesla Rifle Cooled Plasma Rifle Vortex Driver Vortex Driver Heavy Machine Gun Enhanced Gauss Cannon Remote Datajack DRS Beacon [Rating: 110] Favorites ----------- Power Ion Engine Engine Ion Engine Power Core Reinforced Fission Core Reactor Antimatter Reactor Propulsion Compact Wheel Treads Armored Medium Treads Leg Flexi-carbon Leg Wheel Compact Wheel Hover Unit Antigrav System Flight Unit Field Propulsion Array Utility A0-MCA's Component Scanner Device Seismic Detector Storage High-capacity Storage Unit Processor A0-MCA's Component Scanner Protection Improved Medium Armor Plating Weapon Hypervelocity Coil Gun Energy Gun Cooled Plasma Rifle Energy Cannon Heavy Plasma Cannon Ballistic Gun Hypervelocity Coil Gun Launcher Grenade Launcher Build | -11 -10 -10 -7 -5 -5 -5 -5 -4 -4 -4 ------- Run | Yrd Mat Sub Scr Fac Upp Upp War Pro Fac Gar Slots Evolved 12 | . . . . 10 . . . . 2 . Power 1 | . . . . 1 . . . . . . Propulsion 4 | . . . . 4 . . . . . . Utility 5 | . . . . 3 . . . . 2 . Weapon 2 | . . . . 2 . . . . . . Parts Attached 121 | 8 1 14 6 65 3 3 3 5 4 9 Power 14 | 1 . . 2 9 . . 1 . . 1 Engine 5 | 1 . . 1 2 . . 1 . . . Core 5 | . . . 1 4 . . . . . . Reactor 4 | . . . . 3 . . . . . 1 Propulsion 36 | 2 . 4 1 22 . 2 . 1 1 3 Treads 14 | 1 . 2 1 9 . 1 . . . . Leg 7 | . . . . 4 . . . . . 3 Wheel 10 | 1 . 2 . 5 . 1 . 1 . . Hover 4 | . . . . 4 . . . . . . Flight 1 | . . . . . . . . . 1 . Utility 30 | 2 1 3 2 15 1 . . 3 1 2 Device 13 | 1 . . . 9 . . . 1 . 2 Storage 3 | 1 1 . . 1 . . . . . . Processor 6 | . . . 1 3 . . . 1 1 . Hackware . | . . . . . . . . . . . Protection 8 | . . 3 1 2 1 . . 1 . . Artifact . | . . . . . . . . . . . Weapon 41 | 3 . 7 1 19 2 1 2 1 2 3 Energy Gun 14 | 2 . 2 1 5 . . 1 . . 3 Energy Cannon 3 | . . . . 1 . . . . 2 . Ballistic Gun 21 | 1 . 4 . 11 2 1 1 1 . . Ballistic Cannon . | . . . . . . . . . . . Launcher 3 | . . 1 . 2 . . . . . . Special Weapon . | . . . . . . . . . . . Impact Weapon . | . . . . . . . . . . . Slashing Weapon . | . . . . . . . . . . . Piercing Weapon . | . . . . . . . . . . . Special Melee Weapon . | . . . . . . . . . . . Unidentified Prototypes . | . . . . . . . . . . . Parts Lost 51 | . . 8 . 29 1 2 . 5 6 . Power 4 | . . . . 3 . . . . 1 . Propulsion 19 | . . 3 . 10 . 1 . 3 2 . Utility 10 | . . 2 . 7 . . . 1 . . Weapon 18 | . . 3 . 9 1 1 . 1 3 . Highest Loss Streak 14 | . . 4 . 14 1 2 . 2 6 . To Critical Strikes 1 | . . . . 1 . . . . . . Average Backups 15 | 3 9 13 14 16 17 17 16 17 13 4 Power . | . 1 1 . . 1 1 1 1 . . Propulsion 1 | 2 3 1 1 1 3 2 1 . . . Utility 5 | . 2 5 5 4 5 6 6 9 6 3 Weapon 6 | . 2 4 6 7 8 8 6 6 4 . Tool/Special . | . . . . . . . . . . . Unused Backups 39 | . . 1 12 15 . . . . 8 3 Power 3 | . . . . 2 . . . . 1 . Propulsion 5 | . . 1 1 2 . . . . 1 . Utility 12 | . . . 2 4 . . . . 3 3 Weapon 17 | . . . 8 7 . . . . 2 . Tool/Special 2 | . . . 1 . . . . . 1 . Average Slot Usage (%) 94 | . 100 99 100 91 94 92 98 96 71 23 Engine 6 | . 14 14 11 3 . . . 5 3 . Core 2 | . . . 2 3 5 5 4 . . . Reactor 2 | . . . . 1 5 5 5 5 3 2 Treads 14 | . 14 14 14 13 17 16 17 17 11 . Wheel 12 | . 14 13 14 10 11 12 17 13 3 . Device 2 | . 14 . . 8 3 . . . 3 2 Storage 8 | . 14 14 14 5 5 5 5 5 3 . Processor 8 | . . . 3 9 17 17 17 17 16 . Protection 6 | . . 14 10 1 1 5 5 4 3 . Energy Gun 7 | . 14 4 9 7 10 4 10 8 3 8 Ballistic Gun 14 | . 14 19 18 12 11 16 10 13 10 . Peak Build Rating 110 | 7 8 11 29 98 95 94 92 91 110 49 Average Rating 54 | 5 7 9 18 83 92 90 90 87 80 25 On Entrance 45 | . 7 8 11 29 96 94 75 91 84 2 Avg Prop Armor Cover (%) 12 | 11 11 6 9 10 22 19 17 17 19 . Naked Turns 94 | . . . . . . . . . 56 38 Heaviest Build 106 | 15 30 35 37 105 103 103 106 94 91 22 Greatest Support 124 | 10 20 20 16 120 124 48 48 81 16 65 Greatest Overweight (x) 6 | 1 2 3 2 6 3 3 2 5 5 . Average Overweight (x) 1 | . 1 1 1 1 2 2 1 1 2 . Largest Inventory Capacity 20 | 8 15 15 15 20 20 20 20 20 20 5 Average Capacity 17 | 7 14 15 15 19 20 20 20 20 16 5 Most Carried 20 | 5 14 15 15 20 20 20 20 20 19 5 Average Carried 16 | 3 9 13 14 17 19 19 18 18 13 4 Final Capacity 20 | 8 15 15 15 20 20 20 20 20 5 5 Final Carried 20 | 5 14 15 15 20 20 19 20 17 5 4 Class Distribution -------------------- 43% | Mutant 35% | Scavenger-Gunner 11% | Scavenger-Tank 4% | Scavenger-Skirmisher Dominant Class ---------------- Mutant | -10/Materials Mutant | -10/Subcaves Mutant | -7/Scraptown Scavenger-Gunner | -5/Factory Scavenger-Gunner | -5/Upper Caves Scavenger-Tank | -5/Upper Caves Scavenger-Gunner | -5/Warlord Scavenger-Gunner | -4/Proximity Caves Scavenger-Gunner | -4/Factory Scavenger-Gunner | -4/Garrison Resources | -11 -10 -10 -7 -5 -5 -5 -5 -4 -4 -4 ----------- Run | Yrd Mat Sub Scr Fac Upp Upp War Pro Fac Gar Matter Collected 5226 | 298 51 684 60 3085 308 178 60 300 . 202 Remotely . | . . . . . . . . . . . Salvage Created 5379 | 79 51 262 . 3303 557 229 . 676 44 178 Parts 252 | 4 2 13 . 172 19 12 . 26 3 1 Haulers Intercepted 2 | . 1 . . 1 . . . . . . Recyclers Shooed 6 | 1 . . . 5 . . . . . . Parts Field Recycled . | . . . . . . . . . . . Retrieved Matter . | . . . . . . . . . . . Parts Self-Destructed 85 | . . 10 . . 18 24 . 33 . . Prevented . | . . . . . . . . . . . Parts Restored . | . . . . . . . . . . . Kills | -11 -10 -10 -7 -5 -5 -5 -5 -4 -4 -4 ------- Run | Yrd Mat Sub Scr Fac Upp Upp War Pro Fac Gar Combat Hostiles Destroyed 74 | . . 10 . 35 9 5 . 11 1 3 Guns 56 | . . 6 . 27 9 5 . 9 . . Cannons 4 | . . . . . . . . . 1 3 AOE 13 | . . 4 . 7 . . . 2 . . Classes Destroyed 22 | 1 1 2 . 15 1 . . 1 1 . Worker 3 | . . . . 3 . . . . . . Builder 3 | . . . . 3 . . . . . . Tunneler 3 | 3 . . . . . . . . . . Hauler 2 | . 1 . . 1 . . . . . . Recycler 6 | . . . . 6 . . . . . . Drone 1 | . . . . . . . . 1 . . Watcher 3 | . . . . 3 . . . . . . Swarmer 14 | . . 3 . 5 2 3 . 1 . . Saboteur 2 | . . . . 1 . . . 1 . . Grunt 20 | . . . . 9 2 1 . 5 . 3 Brawler 1 | . . . . . 1 . . . . . Duelist 3 | . . . . 1 1 . . 1 . . Protector 2 | . . . . 2 . . . . . . Sentry 7 | . . . . 2 2 1 . 2 . . Demolisher 1 | . . . . . . . . . 1 . Specialist 2 | . . . . 2 . . . . . . Hunter 5 | . . . . 5 . . . . . . Programmer 6 | . . . . 6 . . . . . . Heavy 1 | . . . . 1 . . . . . . Behemoth 2 | . . . . 1 1 . . . . . Subdweller 7 | . . 7 . . . . . . . . Scrapoid 1 | . . . . 1 . . . . . . Best Kill Streak 11 | 2 1 2 . 11 5 2 . 7 1 1 Combat Bots Only 8 | . . 2 . 8 5 2 . 7 1 1 Max Kills in Single Turn 3 | 1 1 1 . 3 2 1 . 2 1 1 Gunslinging 1 | . . . . . 1 . . . . . Exploded 2 | . . 1 . 2 . . . 2 . . Melee . | . . . . . . . . . . . Uniques/NPCs Destroyed . | . . . . . . . . . . . Combat | -11 -10 -10 -7 -5 -5 -5 -5 -4 -4 -4 -------- Run | Yrd Mat Sub Scr Fac Upp Upp War Pro Fac Gar Hostile Shots Fired 725 | . . 59 . 359 38 38 10 74 101 46 Missed 215 | . . 22 . 98 11 7 5 23 38 11 Hits 510 | . . 37 . 261 27 31 5 51 63 35 Melee 9 | . . . . 6 . . . . . 3 Projectile 501 | . . 37 . 255 27 31 5 51 63 32 AOE 22 | . . 4 . 2 . . . . 16 . Critical Strikes 16 | . . 1 . 9 1 . 1 2 1 1 Actively Blocked 2 | . . . . 2 . . . . . . Part Disruptions 1 | . . . . 1 . . . . . . Damage Taken 11044 | . . 1031 . 5289 681 534 66 1192 1537 714 Core 2123 | . . 148 . 526 86 18 . 182 747 416 Absorbed by Shields . | . . . . . . . . . . . Redirected to Shielding 149 | . . . . 149 . . . . . . Regen/Repaired (Parts) 381 | . . . . 100 . . 281 . . . Core Remaining (%) 52 | 100 . . 40 . . . . 18 . . Volleys Fired 260 | 6 2 58 . 119 24 12 1 26 6 6 Largest 4 | 2 2 2 . 4 4 4 4 4 4 1 Hottest 220 | 60 60 63 . 220 111 117 118 214 152 100 Shots Fired 667 | 12 4 84 . 335 78 40 4 87 17 6 Gun 596 | 12 4 55 . 308 75 40 4 86 12 . Cannon 24 | . . . . 13 . . . . 5 6 Launcher 47 | . . 29 . 14 3 . . 1 . . Special . | . . . . . . . . . . . Kinetic 363 | 6 2 36 . 193 33 31 2 53 7 . Thermal 206 | . . 3 . 112 42 9 2 33 5 . Explosive 43 | . . 29 . 10 3 . . 1 . . Electromagnetic 44 | 6 2 16 . 20 . . . . . . Entropic 11 | . . . . . . . . . 5 6 Robot Hit Streak 17 | 3 2 16 . 15 17 6 2 13 3 5 Robot Miss Streak 6 | 2 1 2 . 6 5 6 2 3 2 1 Penetration Max 3 | . . . . 3 1 1 1 1 . 1 Secondary Targets 16 | . . . . 9 3 2 . 2 . . Max Gunslinging Chain 1 | . . . . 1 1 1 . 1 . . Shots Hit Robots 393 | 6 2 43 . 197 48 21 2 60 9 5 Core Hits 216 | 3 1 18 . 122 23 9 1 30 6 3 Critical Kills 23 | . . . . 17 1 1 . 4 . . Critical Parts Destroyed 30 | . . . . 20 1 . 1 7 1 . Critical Strikes 77 | . . . . 50 4 2 1 15 2 3 Burn 14 | . . . . 8 2 1 . 3 . . Destroy 58 | . . . . 41 2 1 1 12 1 . Corrupt 1 | . . . . 1 . . . . . . Sunder 4 | . . . . . . . . . 1 3 Melee Attacks . | . . . . . . . . . . . Impact . | . . . . . . . . . . . Slashing . | . . . . . . . . . . . Piercing . | . . . . . . . . . . . Sneak Attacks . | . . . . . . . . . . . Combat Hostiles . | . . . . . . . . . . . Follow-up Attacks . | . . . . . . . . . . . Damage Inflicted 10188 | 72 25 1385 . 4971 1108 562 39 1164 312 550 Guns 6904 | 72 25 608 . 3350 1108 562 39 1001 139 . Cannons 968 | . . . . 245 . . . . 173 550 Explosions 2316 | . . 777 . 1376 . . . 163 . . Melee . | . . . . . . . . . . . Ramming . | . . . . . . . . . . . Kinetic 3290 | 23 10 464 . 1406 465 464 14 354 90 . Thermal 3687 | . . 10 . 2215 643 98 25 647 49 . Explosive 1791 | . . 777 . 851 . . . 163 . . Electromagnetic 697 | 49 15 134 . 499 . . . . . . Impact . | . . . . . . . . . . . Slashing . | . . . . . . . . . . . Piercing . | . . . . . . . . . . . Entropic 723 | . . . . . . . . . 173 550 Highest Corruption 7 | . . . . 7 7 7 7 . . 2 Average Corruption 5 | . . . . 4 7 7 7 . . 2 Corruption Purged . | . . . . . . . . . . . Corruption Blocked . | . . . . . . . . . . . Effects 94 | . . . . 43 28 22 1 . . . Message Errors 22 | . . . . 8 9 5 . . . . Matter Fused 23 | . . . . 10 9 4 . . . . Heat Flow Errors 14 | . . . . 8 4 2 . . . . Energy Discharges 11 | . . . . 4 2 4 1 . . . Parts Rejected 2 | . . . . 1 . 1 . . . . Data Loss (minor) 7 | . . . . 4 1 2 . . . . Data Loss (major) 3 | . . . . 3 . . . . . . Misfires 5 | . . . . . 2 3 . . . . Alerts 2 | . . . . 2 . . . . . . Weapon Failures 5 | . . . . 3 1 1 . . . . Overload Shots 9 | . . . . 7 . . . 2 . . Overflow Damage 136 | . . 57 . 73 . . . . . 6 Projectiles 38 | . . . . 32 . . . . . 6 Explosions 98 | . . 57 . 41 . . . . . . Melee . | . . . . . . . . . . . Knockbacks . | . . . . . . . . . . . Impact . | . . . . . . . . . . . Kinetic . | . . . . . . . . . . . Secondary . | . . . . . . . . . . . Self-Inflicted Damage 265 | . . 67 . 165 33 . . . . . Shots 9 | . . 3 . 5 1 . . . . . Rammed . | . . . . . . . . . . . Targets Rammed . | . . . . . . . . . . . Kicked . | . . . . . . . . . . . Crushed . | . . . . . . . . . . . Highest Temperature 519 | . . . . 519 289 266 66 244 223 28 Average Temperature 105 | . . . . 106 119 102 38 97 94 14 Received Heat Transfer 1134 | . . 93 . 564 120 117 . 162 . 78 Effects 8 | . . . . 3 4 . . 1 . . Shutdowns 1 | . . . . 1 . . . . . . Energy Bleed 3 | . . . . 1 1 . . 1 . . Interference 3 | . . . . . 3 . . . . . Matter Decay 1 | . . . . 1 . . . . . . Siege Activations . | . . . . . . . . . . . Martial Activations . | . . . . . . . . . . . Shielding Activations . | . . . . . . . . . . . Robots Disrupted . | . . . . . . . . . . . Combat Hostiles . | . . . . . . . . . . . Robots Corrupted . | . . . . . . . . . . . Combat Hostiles . | . . . . . . . . . . . Parts Fried 1 | . . . . 1 . . . . . . Impact Corruptions . | . . . . . . . . . . . Robots Melted 1 | . . . . 1 . . . . . . Combat Hostiles 1 | . . . . 1 . . . . . . Parts Melted 36 | . . 1 . 25 2 1 . 7 . . Heat Transferred 8127 | . . 25 . 4542 1500 300 50 1610 100 . Parts Sabotaged . | . . . . . . . . . . . Parts Stolen . | . . . . . . . . . . . Parts Stripped . | . . . . . . . . . . . Power Chain Reactions 1 | . . . . 1 . . . . . . Alert | -11 -10 -10 -7 -5 -5 -5 -5 -4 -4 -4 ------- Run | Yrd Mat Sub Scr Fac Upp Upp War Pro Fac Gar Maximum Alert Level 4 | . . . . 4 . . . . 1 1 Low Security (%) 49 | 100 100 . . 44 . . . . 71 . Level 1 25 | . . . . 22 . . . . 28 100 Level 2 7 | . . . . 9 . . . . . . Level 3 1 | . . . . 2 . . . . . . Level 4 15 | . . . . 20 . . . . . . Level 5 . | . . . . . . . . . . . High Security . | . . . . . . . . . . . Max Security . | . . . . . . . . . . . Peak Influence 1262 | 5 22 . . 1262 . . . . 278 294 Initial 200 | . . . . . . . . . 178 200 Average 326 | . 3 . . 386 . . . . 172 257 Influence Increases 3491 | 15 22 90 . 1992 199 275 . 352 428 118 Destroy 0b10 Robot/C 1740 | . . 60 . 880 180 240 . 280 20 80 Destroy 0b10 Robot/NC 125 | 15 5 . . 95 . . . 10 . . Destroy Leader 220 | . 2 . . 158 10 10 . 20 10 10 Allied During Kill 249 | . . . . 182 9 25 . 27 . 6 Successful Hack 70 | . . . . 28 . . . . 28 14 Disable Machine 120 | . 15 . . 105 . . . . . . Anti-Garrison Action 300 | . . . . 150 . . . . 150 . Destroy Structure 292 | . . . . 274 . . . . 10 8 Advance Influence 150 | . . . . . . . . . 150 . Lose Combat Pursuer 225 | . . 30 . 120 . . . 15 60 . Influence Decreases 3213 | 15 22 90 . 734 868 402 462 306 188 126 Entered New Map 1144 | . . . . . 466 112 462 . 18 86 Time Decay 1571 | 15 22 80 . 446 392 270 . 236 110 . Lost Part 398 | . . 10 . 248 10 20 . 50 60 . Lost Ally 100 | . . . . 40 . . . 20 . 40 Squads Dispatched 19 | . . . . 15 . 1 . 1 2 . Investigation 3 | . . . . 2 . 1 . . . . Extermination 4 | . . . . 4 . . . . . . Reinforcement 3 | . . . . 3 . . . . . . Assault 8 | . . . . 5 . . . 1 2 . Garrison 1 | . . . . 1 . . . . . . Intercept . | . . . . . . . . . . . Searches Triggered . | . . . . . . . . . . . Construction Impeded 1 | . . . . 1 . . . . . . Haulers Reinforced . | . . . . . . . . . . . Active Scanning Responses . | . . . . . . . . . . . Cargo Convoy Interrupts 1 | . . . . 1 . . . . . . Stealth | -11 -10 -10 -7 -5 -5 -5 -5 -4 -4 -4 --------- Run | Yrd Mat Sub Scr Fac Upp Upp War Pro Fac Gar Distress Signals 2 | . . . . 2 . . . . . . Communications Jammed . | . . . . . . . . . . . Distress Signals . | . . . . . . . . . . . Times Spotted 157 | . . 15 . 57 9 12 10 17 14 23 Peak Tracking Total 19 | . . 5 . 12 5 7 7 7 7 19 Tactical Retreats 10 | . . 1 . 7 . . . 1 1 . Traps | -11 -10 -10 -7 -5 -5 -5 -5 -4 -4 -4 ------- Run | Yrd Mat Sub Scr Fac Upp Upp War Pro Fac Gar Traps Triggered 4 | . . 3 . . . . . . 1 . Indirectly . | . . . . . . . . . . . Trap Hack Attempts . | . . . . . . . . . . . Triggered . | . . . . . . . . . . . Disarmed . | . . . . . . . . . . . Reprogrammed . | . . . . . . . . . . . Reused . | . . . . . . . . . . . Traps Extracted . | . . . . . . . . . . . Installed . | . . . . . . . . . . . Triggered . | . . . . . . . . . . . Machines | -11 -10 -10 -7 -5 -5 -5 -5 -4 -4 -4 ---------- Run | Yrd Mat Sub Scr Fac Upp Upp War Pro Fac Gar Machines Disabled 10 | . 1 . . 8 . . . . 1 . Max in Single Turn 2 | . 1 . . 2 . . . . 1 . Garrison Access 2 | . . . . 1 . . . . 1 . Machines Repaired . | . . . . . . . . . . . Machines Dismantled . | . . . . . . . . . . . Machines Sabotaged . | . . . . . . . . . . . Overloaded Fab Kills . | . . . . . . . . . . . Hacking | -11 -10 -10 -7 -5 -5 -5 -5 -4 -4 -4 --------- Run | Yrd Mat Sub Scr Fac Upp Upp War Pro Fac Gar Machines Accessed 29 | . . . 9 9 . 1 5 . 3 2 Terminals 9 | . . . . 6 . 1 . . . 2 Fabricators 1 | . . . . 1 . . . . . . Repair Stations 1 | . . . . 1 . . . . . . Recycling Units . | . . . . . . . . . . . Scanalyzers 1 | . . . . . . . . . 1 . Garrison Access 3 | . . . . 1 . . . . 2 . Total Hacks 80 | . . . 32 24 . 6 9 . 4 5 Successful 58 | . . . 32 7 . 6 9 . 3 1 Failed 21 | . . . . 17 . . . . . 4 Catastrophic 3 | . . . . 2 . . . . . 1 Database Lockouts 1 | . . . . . . . . . 1 . Manual 12 | . . . . 12 . . . . . . Terminals 29 | . . . . 18 . 6 . . . 5 Fabricators 2 | . . . . 2 . . . . . . Repair Stations 1 | . . . . 1 . . . . . . Recycling Units . | . . . . . . . . . . . Scanalyzers 2 | . . . . . . . . . 2 . Garrison Access 5 | . . . . 3 . . . . 2 . Terminal Hacks 51 | . . . 32 3 . 6 9 . . 1 Record 36 | . . . 26 . . 6 4 . . . Robot Analysis 5 | . . . 5 . . . . . . . Prototype ID Bank 4 | . . . . . . . 4 . . . Open Door 1 | . . . . . . . 1 . . . Branch Access Points 1 | . . . . 1 . . . . . . Terminal Index 1 | . . . . 1 . . . . . . Recall Assault 1 | . . . . 1 . . . . . . Garrison Registry 1 | . . . . . . . . . . 1 Proto ID Catalog 1 | . . . 1 . . . . . . . Fabricator Hacks . | . . . . . . . . . . . Repair Station Hacks . | . . . . . . . . . . . Recycling Unit Hacks . | . . . . . . . . . . . Scanalyzer 1 | . . . . . . . . . 1 . Retrieve Study 1 | . . . . . . . . . 1 . Garrison Access Hacks 2 | . . . . . . . . . 2 . Unlock Access 2 | . . . . . . . . . 2 . Unauthorized Hacks 4 | . . . . 4 . . . . . . Terminals 2 | . . . . 2 . . . . . . Botnet 2 | . . . . 2 . . . . . . Fabricators 1 | . . . . 1 . . . . . . Fabnet 1 | . . . . 1 . . . . . . Repair Stations 1 | . . . . 1 . . . . . . Patch 1 | . . . . 1 . . . . . . Recycling Units . | . . . . . . . . . . . Scanalyzers . | . . . . . . . . . . . Garrison Access . | . . . . . . . . . . . Data Cores Recovered . | . . . . . . . . . . . Used . | . . . . . . . . . . . Hacking Detections 13 | . . . . 8 . 1 . . 3 1 Full Trace Events 2 | . . . . 1 . 1 . . . . Feedback Events 1 | . . . . 1 . . . . . . Corruption 1 | . . . . 1 . . . . . . Feedback Blocked . | . . . . . . . . . . . Robot Schematics Acquired . | . . . . . . . . . . . Robots Built . | . . . . . . . . . . . Authchips . | . . . . . . . . . . . Time . | . . . . . . . . . . . Total Robot Build Rating . | . . . . . . . . . . . Part Schematics Acquired . | . . . . . . . . . . . Parts Built . | . . . . . . . . . . . Authchips . | . . . . . . . . . . . Time . | . . . . . . . . . . . Total Part Build Rating . | . . . . . . . . . . . Part Studies Acquired 1 | . . . . . . . . . 1 . Parts Repaired . | . . . . . . . . . . . Time . | . . . . . . . . . . . Parts Recycled . | . . . . . . . . . . . Recycled Matter . | . . . . . . . . . . . Retrieved Matter . | . . . . . . . . . . . Retrieved Components . | . . . . . . . . . . . Parts Scanalyzed . | . . . . . . . . . . . Part Schematics Acquired . | . . . . . . . . . . . Parts Damaged . | . . . . . . . . . . . Bothacking | -11 -10 -10 -7 -5 -5 -5 -5 -4 -4 -4 ------------ Run | Yrd Mat Sub Scr Fac Upp Upp War Pro Fac Gar Used RIF Installer . | . . . . . . . . . . . Robots Hacked 2 | . . . . . . . . . . 2 Non-combat . | . . . . . . . . . . . Combat 2 | . . . . . . . . . . 2 Robot Hacks Applied . | . . . . . . . . . . . Relay Couplers Released 5 | . . . . 2 . . . . 3 . Machine Destruction 5 | . . . . 2 . . . . 3 . Fabnet Peak Effective % 3 | . . . . . . . . 3 3 3 Autooverrided 2 | . . . . . . . . . . 2 Robots Rewired 3 | . . . . . 1 . . 2 . . Allies Hacked . | . . . . . . . . . . . Hacks Repelled . | . . . . . . . . . . . Allies | -11 -10 -10 -7 -5 -5 -5 -5 -4 -4 -4 -------- Run | Yrd Mat Sub Scr Fac Upp Upp War Pro Fac Gar Total Allies 10 | . . . . 5 1 . . 2 . 2 Largest Group 5 | . . . . 5 1 1 1 2 . 1 Highest-Rated Group 238 | . . . . 238 49 49 49 95 . 47 Highest-Rated Ally 50 | . . . . 50 49 49 49 48 . 47 Initial UFD Resources 41 | . . . . 39 39 39 39 41 41 41 Total Orders . | . . . . . . . . . . . Ally Attacks 170 | . . . . 118 3 11 3 29 . 6 Total Damage 4333 | . . . . 2490 143 421 97 1000 . 182 Kills 26 | . . . . 13 . 7 . 5 . 1 Allies Corrupted . | . . . . . . . . . . . Allies Melted 1 | . . . . . . . 1 . . . Intel | -11 -10 -10 -7 -5 -5 -5 -5 -4 -4 -4 ------- Run | Yrd Mat Sub Scr Fac Upp Upp War Pro Fac Gar Active Infowar (turns) 2038 | 9 142 . . 1068 648 . . . 170 1 Sensors 1 | . . . . . . . . . . 1 Terrain 167 | . . . . 167 . . . . . . Traps 938 | . . . . 938 . . . . . . Seismic 1588 | 9 142 . . 619 648 . . . 170 . Robot Analysis Total 5 | . . . 5 . . . . . . . Derelict Logs Recovered 5 | . . 1 . . 2 . . 2 . . Drone Launches . | . . . . . . . . . . . Drone Recoveries . | . . . . . . . . . . . Exploration | -11 -10 -10 -7 -5 -5 -5 -5 -4 -4 -4 ------------- Run | Yrd Mat Sub Scr Fac Upp Upp War Pro Fac Gar Turns Passed 10092 | 115 142 1909 2142 2189 935 598 922 736 229 175 Spaces Moved 6496 | 88 114 1035 1647 1116 580 400 702 507 187 120 Core 137 | 3 . . . . . . . . 103 31 Treads 747 | . 3 345 . 396 2 . . 1 . . Legs 89 | . . . . . . . . . . 89 Wheels 5523 | 85 111 690 1647 720 578 400 702 506 84 . Hover . | . . . . . . . . . . . Flight . | . . . . . . . . . . . Fastest Speed 50 | 50 95 115 115 97 145 115 115 115 50 50 Average Speed 135 | 92 111 166 128 136 145 138 128 123 104 101 Slowest Speed 320 | 95 240 240 130 320 166 145 130 250 175 120 Overloaded Moves . | . . . . . . . . . . . Propulsion Burnouts . | . . . . . . . . . . . Robots Hopped . | . . . . . . . . . . . Potential Cave-ins 4 | . . . . . 2 . 2 . . . Cave-ins Triggered . | . . . . . . . . . . . Exploration Rate (%) 46 | 4 20 54 92 22 80 57 79 74 6 21 Regions Visited 10 Branch Regions 6 Pre-discovered Areas 7 | . . 1 3 . 1 . . 2 . . Known Exits Taken 2 | . . . . 1 . . . . 1 . Unknown Exits Taken 8 | 1 1 1 1 . 1 1 1 1 . . Scrap Searched 13 | . . 7 3 . 2 1 . . . . Spaces Dug 2 | . . . . . . . . . 2 . Terrain Destroyed 287 | . . 128 . 95 41 5 . 8 5 5 Melee . | . . . . . . . . . . . Projectile 32 | . . 1 . 13 3 5 . . 5 5 AOE 247 | . . 127 . 75 38 . . 7 . . Terrain Rammed . | . . . . . . . . . . . Walls Destroyed . | . . . . . . . . . . . Machines Disabled . | . . . . . . . . . . . Actions | -11 -10 -10 -7 -5 -5 -5 -5 -4 -4 -4 --------- Run | Yrd Mat Sub Scr Fac Upp Upp War Pro Fac Gar Total 7276 | 106 125 1139 1691 1532 618 419 718 557 207 164 Wait 147 | . 1 7 . 110 5 . . 1 1 22 Move 6487 | 87 113 1034 1646 1115 579 399 701 506 187 120 Hop . | . . . . . . . . . . . Pick Up 114 | 4 8 12 17 56 2 2 7 1 5 . Fast Attach 54 | 8 . 2 1 32 . 1 . . 1 9 Attach 51 | . . 8 . 25 1 2 4 4 4 3 Detach 7 | 1 . . . 1 . . 1 . 1 3 Swap 58 | . 1 12 5 28 5 1 1 4 1 . Drop 83 | . . 6 22 46 1 2 3 1 1 1 Fire 260 | 6 2 58 . 119 24 12 1 26 6 6 Melee . | . . . . . . . . . . . Ram . | . . . . . . . . . . . Kick . | . . . . . . . . . . . Crush . | . . . . . . . . . . . Escape Stasis . | . . . . . . . . . . . Rewire 15 | . . . . . 1 . . 14 . . Trap . | . . . . . . . . . . . Miscellaneous . | . . . . . . . . . . . Route ------- -11/Scrapyard -10/Materials -10/Subcaves -7/Scraptown (discovered 2 exits: *Fac x2) -5/Factory (discovered 2 exits: *Upp x2) -5/Upper Caves -5/Upper Caves (discovered 2 exits: *Fac / *War) -5/Warlord -4/Proximity Caves -4/Factory (discovered 4 exits: Res / Upp x2 / Gar) -4/Garrison (discovered 3 exits: [Fac x3]) History --------- Turn | Location | Event 17 | -11/Scrapyard | Discovered new exit (range 16) 116 | -11/Scrapyard | Entered Materials 117 | -10/Materials | Met a group of wandering Federalists 196 | -10/Materials | Discovered new exit (range 7) 258 | -10/Materials | Entered Subcaves 258 | -10/Subcaves | Accompanied by 3 allies 259 | -10/Subcaves | Continued accompanying wandering Federalists (6) 259 | -10/Subcaves | Approached by a straggling Scientist 328 | -10/Subcaves | Build established: Mutant 366 | -10/Subcaves | Shifting Twisted Machinery released Flamer 388 | -10/Subcaves | Learned location of Zion (-6) 388 | -10/Subcaves | Met a Zionite searching for "candidates" 516 | -10/Subcaves | Wandering Federalist uncovered a shortcut to Scraptown 607 | -10/Subcaves | Lost 3 allies 699 | -10/Subcaves | Ambushed by Subdweller buried in earth 751 | -10/Subcaves | Lost 4 parts (1n2u1w) 1280 | -10/Subcaves | Ambushed by Subdweller buried in earth 1368 | -10/Subcaves | A swath of the cavern ceiling suddenly collapsed 1467 | -10/Subcaves | Learned Materials interactive machine intel 1547 | -10/Subcaves | Core integrity fell below 50% 1613 | -10/Subcaves | Shifting Twisted Machinery released Battle Cannon 1614 | -10/Subcaves | Shifting Twisted Machinery released Sub. Power Source 2167 | -10/Subcaves | Entered Scraptown 2319 | -7/Scraptown | Visited Assassins FH 2367 | -7/Scraptown | Visited Cyclists 2477 | -7/Scraptown | Visited UFD Registry 2477 | -7/Scraptown | Registered with UFD as "Nukeslasher" 2574 | -7/Scraptown | Entered Cyclist Reading Room 2605 | -7/Scraptown | Visited Observation Area 2666 | -7/Scraptown | Visited Cave Peace 2842 | -7/Scraptown | Learned location of Extension (-6) 3051 | -7/Scraptown | Discovered new exit (range 9) 3169 | -7/Scraptown | Visited Comm Corps 3224 | -7/Scraptown | Visited CPS Storage 3240 | -7/Scraptown | Visited Junk Repository 3363 | -7/Scraptown | Visited Abandonware Association 3381 | -7/Scraptown | Learned abandonware demo "OVRCLOCK.EXE" 3390 | -7/Scraptown | Learned abandonware demo "ERRANTS.EXE" 3390 | -7/Scraptown | Learned abandonware demo "REVENGE.EXE" 3421 | -7/Scraptown | Visited Analyses Database 3451 | -7/Scraptown | Visited Scrapoid Pod Storage 3460 | -7/Scraptown | Found Scrapoid Pod 3621 | -7/Scraptown | Visited Science Guys 3668 | -7/Scraptown | Visited Derelict Rescue Squad 3676 | -7/Scraptown | Found DRS Beacon 3702 | -7/Scraptown | Visited A0-MCA Data Center 3710 | -7/Scraptown | Given a B+ rating by A0-MCA 3715 | -7/Scraptown | Found A0-MCA's Component Scanner 3747 | -7/Scraptown | Visited LU-1G1's Boring Crew 3818 | -7/Scraptown | Discovered new exit (range 5) 3909 | -7/Scraptown | Visited Infowarlord's Domain 3943 | -7/Scraptown | Visited DA-N13 Charitable Foundation 3953 | -7/Scraptown | Found DCF Scrap (28 items) 4028 | -7/Scraptown | Visited Modified Component R&D 4229 | -7/Scraptown | Met Optimus 4229 | -7/Scraptown | Accepted into 0bPrime 4309 | -7/Scraptown | Entered Factory 4309 | -5/Factory | Evolved 10 slots: Power x1, Propulsion x4, Utility x3, Weapon x2 4335 | -5/Factory | Identified exit to Upper Caves 4419 | -5/Factory | Lost 4 parts (1n1u2w) 4576 | -5/Factory | Spotted B-75 Beast 4611 | -5/Factory | Destroyed B-75 Beast 4642 | -5/Factory | Lost 4 parts (1p1n1u1w) 4894 | -5/Factory | Build established: Scavenger-Skirmisher 5417 | -5/Factory | Build established: Scavenger-Gunner 5448 | -5/Factory | Cargo convoy interrupted 5519 | -5/Factory | Destroyed 8 combat bots 5519 | -5/Factory | Lost 14 parts (1p6n2u5w) 5854 | -5/Factory | Scrapoid Pod released 05F05-D (x5) 5948 | -5/Factory | Garrison activated, responded to threat 6109 | -5/Factory | First assault squad dispatched 6229 | -5/Factory | Core integrity fell below 50% 6299 | -5/Factory | Build established: Scavenger-Tank 6498 | -5/Factory | Entered Upper Caves 6616 | -5/Upper Caves | Learned location of Armory (-4) 6671 | -5/Upper Caves | Build established: Scavenger-Gunner 6702 | -5/Upper Caves | Attracted the attention of an 0b10 outpost 7158 | -5/Upper Caves | Spotted B-75 Beast 7175 | -5/Upper Caves | Destroyed B-75 Beast 7255 | -5/Upper Caves | Attracted the attention of an 0b10 checkpoint 7297 | -5/Upper Caves | Discovered new exit (range 7) 7340 | -5/Upper Caves | Learned Factory interactive machine intel 7433 | -5/Upper Caves | Entered another Upper Caves area 7433 | -5/Upper Caves | Accompanied by 1 ally 7461 | -5/Upper Caves | Attracted the attention of an 0b10 checkpoint 7464 | -5/Upper Caves | Build established: Scavenger-Tank 7474 | -5/Upper Caves | Discovered new exit (range 14) 7901 | -5/Upper Caves | Attracted the attention of an 0b10 base 7951 | -5/Upper Caves | Learned Armory terminal intel 8000 | -5/Upper Caves | Discovered new exit (range 5) 8031 | -5/Upper Caves | Entered Warlord 8031 | -5/Warlord | Accompanied by 1 ally 8072 | -5/Warlord | System corruption cleaned by Quarantine Array 8191 | -5/Warlord | Visited the Vortex Lab 8206 | -5/Warlord | Warlord's base attacked by MAIN.C 8207 | -5/Warlord | Found Vortex Driver 8209 | -5/Warlord | Found Vortex Driver 8382 | -5/Warlord | Build established: Scavenger-Gunner 8556 | -5/Warlord | Warlord forces counterattacked 8881 | -5/Warlord | Warlord base infiltrated, sounded retreat 8910 | -5/Warlord | Spotted Executioner 8935 | -5/Warlord | Found Exp. Core Analyzer 8939 | -5/Warlord | Discovered new exit (range 14) 8953 | -5/Warlord | Entered Proximity Caves 8974 | -4/Proximity Caves | Lost 3 allies 9110 | -4/Proximity Caves | Spotter reported a threat 9134 | -4/Proximity Caves | Attracted the attention of an 0b10 checkpoint 9162 | -4/Proximity Caves | Attracted the attention of an 0b10 outpost 9223 | -4/Proximity Caves | Destroyed 7 combat bots 9233 | -4/Proximity Caves | Learned location of Quarantine (-2) 9558 | -4/Proximity Caves | Discovered new exit (range 11) 9650 | -4/Proximity Caves | Spotted B-86 Titan 9669 | -4/Proximity Caves | Core integrity fell below 20% 9689 | -4/Proximity Caves | Entered Factory 9689 | -4/Factory | Evolved 2 slots: Utility x2 9690 | -4/Factory | Identified exit to Research 9690 | -4/Factory | Identified exit to Upper Caves 9691 | -4/Factory | Loaded intel: 54 interactive machine locations 9792 | -4/Factory | Central database locked down 9827 | -4/Factory | Identified exit to Garrison 9839 | -4/Factory | Assembled infested ambush trap array 9860 | -4/Factory | Released all parts (13) 9888 | -4/Factory | Core integrity fell below 50% 9890 | -4/Factory | Lost 6 parts (1p2n3w) 9918 | -4/Factory | Identified exit to Garrison 9918 | -4/Factory | Entered Garrison 10041 | -4/Garrison | Discovered new exit (range 49) 10041 | -4/Garrison | Discovered new exit (range 76) 10041 | -4/Garrison | Discovered new exit (range 58) 10052 | -4/Garrison | Triggered checkpoint 10082 | -4/Garrison | Local machine network offline 10088 | -4/Garrison | Released all parts (9) 10089 | -4/Garrison | Spotted B-86 Titan 10090 | -4/Garrison | Core integrity fell below 20% 10093 | -4/Garrison | Destroyed by P-70 Sage with High-powered Shock Rifle Last Messages --------------- 10084_ Vortex penetrates L-61 Swordsman. 10084_ L-61 Swordsman suffers critical hit (Sunder). 10084_ L-61 Swordsman Flexi-carbon Leg ripped off. 10086_ Vortex penetrates Wall. 10087_ P-70 Sage resets G-67 Veteran, system corruption cleaned. 10088_ Released Field Laser. 10088_ Released Lgt. Antimatter Reactor. 10088_ Released Field Laser. 10088_ Released Flexi-carbon Leg. 10088_ Released Field Laser. 10088_ Released Myomer Leg. 10088_ Released Adv. Heat Sink. 10088_ Released Flexi-carbon Leg. 10088_ Released Vortex Driver. Garrison Door activated. 10092_ Penetrated by Slug. 10092_ S-27 Virus destroyed. Map ----- +----------------------------------------------------+ | ##??# #?????????????????###+####### ##### #### | | #??# #?????????????????# | | "#### #?????????????????# | | ^ #?????????????????# | | ^ #?????????????????# #######++########### | | ##### #?????????????????# #?????# #?????????? | | #???# #?????????????????# #?????# ######????? | | #???# #?????????????????# ####### ##"T"#????? | | #???# #?????????????????# + "#????? | | ##### ################### ####### ######????? | | + + + ## #?????# #?????????? | | ##### ###+##+##+###C ## #?????# #???####### | | ????# ####### #####!!! !! | | ????# + | | ????# + | | ????############ ## ##^^^############## | | ?????????????### ## ## ###?????????#! | | ?????????????# Y s #?????????#! | | ?????????????# " BB ss#?????????######## | | ?????????????# ssBB s#????????????????? | | ?????????????# s s#????????????????? | | ?????####????### #; ## ###????????????????? | | ?????#"T########p #; s ## #################### | | ?????# p + | | ?????# ######### | | ?????#^^###+#### @ #?????### | | ?????# #?# #?### ## =##++####+#### #?????#"# | | ?????# #?# #?# # ##%ss%## #??# #??# #?????#" | | ###### ### ####]=[######## #??# #### #?????#" | | + %+%*#??????# #??# + #?????#" | | ###### ##### ##==[#??????# #??###### #?????#"# | | ###### #???# ###=[#??????# #???????# #?????### | | ## #####+###=!#??????# ######### ######### | | ### ## % #??????# + | | ??# ## % #??????# + | | ??# ## ############??????###### ##### ######### | | ??# ## #??????????????????????# #???# #???????? | | ### ## #??????????????????????# #???# #???????? | | + + #??????????????????##### #???# #???????? | | ##### #??????????????????#!!## #???# #???????? | | ""#??# #??????????????????# #???# #???????? | | ###??# #??????????????????#[[## #???# #???????? | | ?????# ##?????????????????#[[## #?### #???????? | | ?????# "#?????????????????#[[## ### " #???????? | | ?????# ##?????????????????#[[## + " #???????? | | ###### #??????????????????##### ### " #???????? | | #??????????????????????# #?### #???????? | | #??????????????????????# #???# #???????? | | #########??????????????????????# #???# #???????? | | #????????????????????????????### ###?# #???????? | +----------------------------------------------------+ Best States ------------- Heat Dissipation 67 Energy Generation 37 Energy Capacity 540 Matter Stores 300 Matter Capacity 300 Sight Range 16 Robot Scan Range 18 Terrain Scan Range 14 Terrain Scan Density 10 Armor Coverage 225 Propulsion Shielding 66 Phase Shifting 5 Evasion (%) 55 Targeting Accuracy 8 Target Analysis 9 Core Analysis 8 Armor Integrity Analysis 30 Recoil Reduction 4 Item Schematics ----------------- None Robot Schematics ------------------ None Fabricated ------------ Nothing Repaired ---------- Nothing Studied --------- Com. Wheel | -4/Factory | Hacked Alien Tech Used ----------------- None Achievements -------------- Wiki Contributor Challenges ------------ None Game ------ Seed PortableAlloySheargun Manual? 0 Play Time 02:10:10 Cumulative 153.2 hours Start 2026.09.19 @ 02:02:50 End 2026.09.20 @ 23:57:57 Sessions 3 Manual Loads 0 Difficulty Rogue Special Mode None Game No. 162 Rogue 162 Adventurer 0 Explorer 0 Win Type - Total 0 Types 0/0/0/0/0/0/0/0/0/0 Lore% 67 Gallery% 54 Achievement% 39 Wizard Run 0 Options --------- Layout 1 ASCII 0 Keyboard 0 Movement Mouse Keybinds 0 Fullscreen 1 Font 24/Smallcaps Map View 50x35 Zoom Use 0% Tactical HUD 1 Map Filters NONE Filters NONE Steam 1 RUN: 73e67520-c62b-4a50-9e6a-698762b89f8e